[Event "January 9 Late 2024"]
[Site "https://www.chess.com"]
[Date "2024.01.09"]
[Round "1"]
[White "Gritsenko, Nikolai"]
[Black "Alvarado, Carlos"]
[Result "1-0"]
[Board "120"]
[TimeControl "180+1"]
[WhiteFideId "14112493"]
[BlackFideId "3800555"]
[WhiteElo "2732"]
[BlackElo "2410"]
[WhiteTeam "UKR"]
[BlackTeam "PER"]
[WhiteClock "0:00:15"]
[BlackClock "0:00:11"]

1. e4 {[%clk 0:02:59]}  c6 {[%clk 0:02:59]} 2. d4 {[%clk 0:02:56]}  d5 {[%clk 0:02:59]} 3. f3 {[%clk 0:02:57]}  e6 {[%clk 0:02:56]} 4. Nc3 {[%clk 0:02:56]}  Bb4 {[%clk 0:02:56]} 5. Ne2 {[%clk 0:02:53]}  Ne7 {[%clk 0:02:56]} 6. a3 {[%clk 0:02:52]}  Ba5 {[%clk 0:02:55]} 7. Be3 {[%clk 0:02:52]}  Nd7 {[%clk 0:02:54]} 8. Qd2 {[%clk 0:02:51]}  Nf6 {[%clk 0:02:35]} 9. e5 {[%clk 0:02:44]}  Nd7 {[%clk 0:02:34]} 10. b4 {[%clk 0:02:43]}  Bc7 {[%clk 0:02:33]} 11. Ng3 {[%clk 0:02:42]}  a5 {[%clk 0:02:23]} 12. Rb1 {[%clk 0:02:40]}  axb4 {[%clk 0:02:21]} 13. axb4 {[%clk 0:02:40]}  b5 {[%clk 0:02:22]} 14. Bd3 {[%clk 0:02:34]}  Nb6 {[%clk 0:02:21]} 15. O-O {[%clk 0:02:31]}  Nc4 {[%clk 0:02:20]} 16. Qf2 {[%clk 0:02:27]}  Nxe3 {[%clk 0:02:17]} 17. Qxe3 {[%clk 0:02:27]}  h5 {[%clk 0:02:16]} 18. Qg5 {[%clk 0:01:58]}  g6 {[%clk 0:02:13]} 19. Nge2 {[%clk 0:01:49]}  Nf5 {[%clk 0:02:09]} 20. Qd2 {[%clk 0:01:41]}  Qe7 {[%clk 0:02:03]} 21. Bxf5 {[%clk 0:01:25]}  gxf5 {[%clk 0:02:02]} 22. Kh1 {[%clk 0:01:22]}  h4 {[%clk 0:02:00]} 23. h3 {[%clk 0:01:20]}  f6 {[%clk 0:01:54]} 24. f4 {[%clk 0:01:19]}  Bd7 {[%clk 0:01:51]} 25. Nd1 {[%clk 0:00:54]}  Kf7 {[%clk 0:01:38]} 26. Nb2 {[%clk 0:00:50]}  Kg7 {[%clk 0:01:36]} 27. Nd3 {[%clk 0:00:49]}  Be8 {[%clk 0:01:34]} 28. exf6+ {[%clk 0:00:46]}  Qxf6 {[%clk 0:01:33]} 29. Ne5 {[%clk 0:00:45]}  Bxe5 {[%clk 0:01:09]} 30. dxe5 {[%clk 0:00:44]}  Qe7 {[%clk 0:01:09]} 31. Nd4 {[%clk 0:00:42]}  Bd7 {[%clk 0:01:09]} 32. Ra1 {[%clk 0:00:41]}  Ra4 {[%clk 0:01:08]} 33. Rxa4 {[%clk 0:00:37]}  bxa4 {[%clk 0:01:09]} 34. Ra1 {[%clk 0:00:34]}  Ra8 {[%clk 0:01:09]} 35. Qc3 {[%clk 0:00:33]}  Rb8 {[%clk 0:00:59]} 36. Nxc6 {[%clk 0:00:27]}  Bxc6 {[%clk 0:00:58]} 37. Qxc6 {[%clk 0:00:27]}  Rxb4 {[%clk 0:00:57]} 38. Rxa4 {[%clk 0:00:24]}  Rxa4 {[%clk 0:00:52]} 39. Qxa4 {[%clk 0:00:24]}  Kh6 {[%clk 0:00:50]} 40. Qa8 {[%clk 0:00:22]}  Kg7 {[%clk 0:00:42]} 41. Qc8 {[%clk 0:00:21]}  Qb4 {[%clk 0:00:28]} 42. Qd7+ {[%clk 0:00:20]}  Kh8 {[%clk 0:00:28]} 43. Qd8+ {[%clk 0:00:19]}  Kh7 {[%clk 0:00:27]} 44. Qxh4+ {[%clk 0:00:19]}  Kg7 {[%clk 0:00:27]} 45. Qf6+ {[%clk 0:00:19]}  Kh7 {[%clk 0:00:27]} 46. Qf7+ {[%clk 0:00:18]}  Kh8 {[%clk 0:00:26]} 47. Qh5+ {[%clk 0:00:17]}  Kg7 {[%clk 0:00:26]} 48. Qg5+ {[%clk 0:00:18]}  Kh7 {[%clk 0:00:26]} 49. Kh2 {[%clk 0:00:18]}  Qd2 {[%clk 0:00:24]} 50. h4 {[%clk 0:00:18]}  Qxc2 {[%clk 0:00:23]} 51. Qe7+ {[%clk 0:00:18]}  Kh8 {[%clk 0:00:22]} 52. Qf6+ {[%clk 0:00:18]}  Kh7 {[%clk 0:00:22]} 53. Qxe6 {[%clk 0:00:18]}  Qe4 {[%clk 0:00:22]} 54. Qe7+ {[%clk 0:00:18]}  Kh8 {[%clk 0:00:22]} 55. Qg5 {[%clk 0:00:18]}  d4 {[%clk 0:00:21]} 56. h5 {[%clk 0:00:18]}  d3 {[%clk 0:00:21]} 57. h6 {[%clk 0:00:18]}  Qb7 {[%clk 0:00:20]} 58. Qd8+ {[%clk 0:00:17]}  Kh7 {[%clk 0:00:19]} 59. Qxd3 {[%clk 0:00:17]}  Kxh6 {[%clk 0:00:20]} 60. Qxf5 {[%clk 0:00:17]}  Qf7 {[%clk 0:00:11]} 61. Qf6+ {[%clk 0:00:15]} 1-0

[Event "January 9 Late 2024"]
[Site "https://www.chess.com"]
[Date "2024.01.09"]
[Round "1"]
[White "Argandona Riveiro, Inigo"]
[Black "Garayev, Kanan"]
[Result "0-1"]
[Board "123"]
[TimeControl "180+1"]
[WhiteFideId "2212072"]
[BlackFideId "13406671"]
[WhiteElo "2403"]
[BlackElo "2729"]
[WhiteTeam "ESP"]
[BlackTeam "AZE"]
[WhiteClock "0:00:00"]
[BlackClock "0:01:17"]

1. Nf3 {[%clk 0:03:00]}  Nf6 {[%clk 0:02:54]} 2. c4 {[%clk 0:03:01]}  g6 {[%clk 0:02:54]} 3. Nc3 {[%clk 0:03:01]}  d5 {[%clk 0:02:54]} 4. Qa4+ {[%clk 0:03:00]}  c6 {[%clk 0:02:54]} 5. cxd5 {[%clk 0:02:59]}  Nxd5 {[%clk 0:02:55]} 6. Qd4 {[%clk 0:02:58]}  f6 {[%clk 0:02:55]} 7. e4 {[%clk 0:02:56]}  e5 {[%clk 0:02:55]} 8. Qd3 {[%clk 0:02:52]}  Nb4 {[%clk 0:02:47]} 9. Qb1 {[%clk 0:02:46]}  Bg4 {[%clk 0:02:45]} 10. a3 {[%clk 0:02:42]}  N4a6 {[%clk 0:02:45]} 11. b4 {[%clk 0:02:38]}  Bxf3 {[%clk 0:02:41]} 12. gxf3 {[%clk 0:02:38]}  Bh6 {[%clk 0:02:42]} 13. Bc4 {[%clk 0:02:31]}  Nc7 {[%clk 0:02:39]} 14. d3 {[%clk 0:02:30]}  Bxc1 {[%clk 0:02:38]} 15. Qxc1 {[%clk 0:02:31]}  Qe7 {[%clk 0:02:34]} 16. Qe3 {[%clk 0:02:21]}  Nd7 {[%clk 0:02:33]} 17. h4 {[%clk 0:02:12]}  Nb6 {[%clk 0:02:33]} 18. Bb3 {[%clk 0:01:58]}  O-O-O {[%clk 0:02:33]} 19. O-O-O {[%clk 0:01:54]}  Kb8 {[%clk 0:02:32]} 20. h5 {[%clk 0:01:50]}  Ne6 {[%clk 0:02:29]} 21. hxg6 {[%clk 0:01:34]}  hxg6 {[%clk 0:02:30]} 22. Rxh8 {[%clk 0:01:34]}  Rxh8 {[%clk 0:02:31]} 23. Bxe6 {[%clk 0:01:33]}  Qxe6 {[%clk 0:02:32]} 24. d4 {[%clk 0:01:25]}  Nc4 {[%clk 0:02:15]} 25. Qd3 {[%clk 0:01:24]}  Nxa3 {[%clk 0:02:16]} 26. d5 {[%clk 0:01:22]}  cxd5 {[%clk 0:02:16]} 27. exd5 {[%clk 0:01:18]}  Qd6 {[%clk 0:02:15]} 28. Na2 {[%clk 0:01:11]}  Rc8+ {[%clk 0:02:13]} 29. Kb2 {[%clk 0:01:09]}  Nc4+ {[%clk 0:02:12]} 30. Ka1 {[%clk 0:01:04]}  f5 {[%clk 0:02:12]} 31. Rc1 {[%clk 0:01:00]}  b5 {[%clk 0:02:11]} 32. Rd1 {[%clk 0:00:45]}  a6 {[%clk 0:02:09]} 33. Kb1 {[%clk 0:00:35]}  Rh8 {[%clk 0:02:03]} 34. f4 {[%clk 0:00:32]}  e4 {[%clk 0:01:59]} 35. Qd4 {[%clk 0:00:31]}  Rh3 {[%clk 0:01:57]} 36. Ka1 {[%clk 0:00:19]}  Ra3 {[%clk 0:01:50]} 37. Qh8+ {[%clk 0:00:17]}  Ka7 {[%clk 0:01:49]} 38. Qg7+ {[%clk 0:00:15]}  Kb6 {[%clk 0:01:48]} 39. Qd4+ {[%clk 0:00:14]}  Kb7 {[%clk 0:01:48]} 40. Qg7+ {[%clk 0:00:13]}  Qc7 {[%clk 0:01:48]} 41. Qd4 {[%clk 0:00:08]}  Nd6 {[%clk 0:01:44]} 42. Qc5 {[%clk 0:00:06]}  Qxc5 {[%clk 0:01:26]} 43. bxc5 {[%clk 0:00:07]}  Nc4 {[%clk 0:01:26]} 44. d6 {[%clk 0:00:07]}  Rd3 {[%clk 0:01:27]} 45. Nc3 {[%clk 0:00:05]}  Kc6 {[%clk 0:01:22]} 46. Rxd3 {[%clk 0:00:03]}  exd3 {[%clk 0:01:23]} 47. Kb1 {[%clk 0:00:02]}  b4 {[%clk 0:01:23]} 48. Na4 {[%clk 0:00:02]}  d2 {[%clk 0:01:22]} 49. Kc2 {[%clk 0:00:02]}  b3+ {[%clk 0:01:23]} 50. Kd1 {[%clk 0:00:02]}  b2 {[%clk 0:01:23]} 51. Nc3 {[%clk 0:00:02]}  a5 {[%clk 0:01:20]} 52. Nb1 {[%clk 0:00:02]}  a4 {[%clk 0:01:20]} 53. Kc2 {[%clk 0:00:02]}  a3 {[%clk 0:01:20]} 54. Nc3 {[%clk 0:00:02]}  a2 {[%clk 0:01:20]} 55. Nxa2 {[%clk 0:00:02]}  b1=Q+ {[%clk 0:01:18]} 56. Kxb1 {[%clk 0:00:01]}  d1=Q+ {[%clk 0:01:18]} 57. Nc1 {[%clk 0:00:00]}  Qd2 {[%clk 0:01:17]} 0-1

[Event "January 9 Late 2024"]
[Site "https://www.chess.com"]
[Date "2024.01.09"]
[Round "1"]
[White "Agibileg, Uurtsaikh"]
[Black "Stachanczyk, Jacek"]
[Result "1/2-1/2"]
[Board "126"]
[TimeControl "180+1"]
[WhiteFideId "4901606"]
[BlackFideId "1116657"]
[WhiteElo "2724"]
[BlackElo "2398"]
[WhiteTeam "MGL"]
[BlackTeam "POL"]
[WhiteClock "0:00:04"]
[BlackClock "0:00:15"]

1. d4 {[%clk 0:03:00]}  d5 {[%clk 0:02:57]} 2. c4 {[%clk 0:02:58]}  c6 {[%clk 0:02:57]} 3. Nf3 {[%clk 0:02:57]}  Nf6 {[%clk 0:02:56]} 4. Nc3 {[%clk 0:02:44]}  dxc4 {[%clk 0:02:55]} 5. a4 {[%clk 0:02:44]}  Bf5 {[%clk 0:02:54]} 6. Ne5 {[%clk 0:02:42]}  Nbd7 {[%clk 0:02:52]} 7. Nxc4 {[%clk 0:02:41]}  Qc7 {[%clk 0:02:52]} 8. g3 {[%clk 0:02:40]}  e5 {[%clk 0:02:52]} 9. dxe5 {[%clk 0:02:39]}  Nxe5 {[%clk 0:02:53]} 10. Bf4 {[%clk 0:02:39]}  Nfd7 {[%clk 0:02:52]} 11. Bg2 {[%clk 0:02:37]}  g5 {[%clk 0:02:51]} 12. Ne3 {[%clk 0:02:36]}  gxf4 {[%clk 0:02:49]} 13. Nxf5 {[%clk 0:02:36]}  O-O-O {[%clk 0:02:49]} 14. Qc2 {[%clk 0:02:34]}  a5 {[%clk 0:02:34]} 15. O-O {[%clk 0:02:30]}  fxg3 {[%clk 0:02:31]} 16. hxg3 {[%clk 0:02:30]}  h5 {[%clk 0:02:26]} 17. Ne4 {[%clk 0:02:21]}  Bb4 {[%clk 0:02:00]} 18. Rfd1 {[%clk 0:02:11]}  Kb8 {[%clk 0:01:44]} 19. Rd4 {[%clk 0:01:45]}  Nb6 {[%clk 0:01:33]} 20. Rad1 {[%clk 0:01:44]}  Rxd4 {[%clk 0:01:31]} 21. Rxd4 {[%clk 0:01:45]}  Rd8 {[%clk 0:01:23]} 22. Qd1 {[%clk 0:01:44]}  Rxd4 {[%clk 0:01:17]} 23. Qxd4 {[%clk 0:01:45]}  Nxa4 {[%clk 0:01:17]} 24. Nfd6 {[%clk 0:01:32]}  Qe7 {[%clk 0:00:53]} 25. b3 {[%clk 0:01:21]}  Nc3 {[%clk 0:00:49]} 26. Nxc3 {[%clk 0:01:18]}  Qxd6 {[%clk 0:00:48]} 27. Qxd6+ {[%clk 0:01:07]}  Bxd6 {[%clk 0:00:49]} 28. f4 {[%clk 0:00:52]}  Bc5+ {[%clk 0:00:48]} 29. Kf1 {[%clk 0:00:48]}  Ng4 {[%clk 0:00:47]} 30. Bf3 {[%clk 0:00:44]}  Nh2+ {[%clk 0:00:46]} 31. Kg2 {[%clk 0:00:44]}  Nxf3 {[%clk 0:00:47]} 32. Kxf3 {[%clk 0:00:45]}  Kc7 {[%clk 0:00:44]} 33. e4 {[%clk 0:00:32]}  b5 {[%clk 0:00:43]} 34. e5 {[%clk 0:00:31]}  Bb4 {[%clk 0:00:42]} 35. Na2 {[%clk 0:00:28]}  Be1 {[%clk 0:00:41]} 36. g4 {[%clk 0:00:24]}  hxg4+ {[%clk 0:00:40]} 37. Kxg4 {[%clk 0:00:25]}  c5 {[%clk 0:00:37]} 38. Kf5 {[%clk 0:00:22]}  Bd2 {[%clk 0:00:37]} 39. Ke4 {[%clk 0:00:20]}  Kc6 {[%clk 0:00:35]} 40. f5 {[%clk 0:00:19]}  c4 {[%clk 0:00:29]} 41. bxc4 {[%clk 0:00:18]}  b4 {[%clk 0:00:29]} 42. Kd3 {[%clk 0:00:16]}  Bg5 {[%clk 0:00:28]} 43. Kc2 {[%clk 0:00:14]}  Kc5 {[%clk 0:00:26]} 44. Kb3 {[%clk 0:00:14]}  Bf4 {[%clk 0:00:22]} 45. e6 {[%clk 0:00:13]}  fxe6 {[%clk 0:00:23]} 46. fxe6 {[%clk 0:00:14]}  Kd6 {[%clk 0:00:23]} 47. Ka4 {[%clk 0:00:09]}  Bd2 {[%clk 0:00:23]} 48. Kb3 {[%clk 0:00:05]}  Kxe6 {[%clk 0:00:22]} 49. Kc2 {[%clk 0:00:05]}  Bg5 {[%clk 0:00:22]} 50. Kb3 {[%clk 0:00:04]}  Be7 {[%clk 0:00:18]} 51. Ka4 {[%clk 0:00:04]}  Ke5 {[%clk 0:00:18]} 52. Nc1 {[%clk 0:00:02]}  Kd4 {[%clk 0:00:17]} 53. Kxa5 {[%clk 0:00:03]}  Kxc4 {[%clk 0:00:15]} 54. Ka4 {[%clk 0:00:03]}  Kc3 {[%clk 0:00:15]} 55. Na2+ {[%clk 0:00:03]}  Kc2 {[%clk 0:00:15]} 56. Nxb4+ {[%clk 0:00:04]} 1/2-1/2

[Event "January 9 Late 2024"]
[Site "https://www.chess.com"]
[Date "2024.01.09"]
[Round "1"]
[White "Hambleton, Aman"]
[Black "Wu, Sibo"]
[Result "1-0"]
[Board "128"]
[TimeControl "180+1"]
[WhiteFideId "2606577"]
[BlackFideId "8606048"]
[WhiteElo "2724"]
[BlackElo "2397"]
[WhiteTeam "CAN"]
[BlackTeam "CHN"]
[WhiteClock "0:00:03"]
[BlackClock "0:00:05"]

1. d4 {[%clk 0:03:00]}  d5 {[%clk 0:02:58]} 2. Bf4 {[%clk 0:02:58]}  Nf6 {[%clk 0:02:54]} 3. e3 {[%clk 0:02:58]}  c5 {[%clk 0:02:55]} 4. c3 {[%clk 0:02:59]}  Nc6 {[%clk 0:02:54]} 5. Nd2 {[%clk 0:02:59]}  cxd4 {[%clk 0:02:51]} 6. exd4 {[%clk 0:03:00]}  e6 {[%clk 0:02:48]} 7. Ngf3 {[%clk 0:03:00]}  Nh5 {[%clk 0:02:47]} 8. Be3 {[%clk 0:02:59]}  Bd6 {[%clk 0:02:46]} 9. g3 {[%clk 0:02:56]}  O-O {[%clk 0:02:31]} 10. Bd3 {[%clk 0:02:27]}  f5 {[%clk 0:01:53]} 11. Ne5 {[%clk 0:02:26]}  Nf6 {[%clk 0:01:51]} 12. Ndf3 {[%clk 0:02:20]}  Ne4 {[%clk 0:01:46]} 13. Bf4 {[%clk 0:02:16]}  h6 {[%clk 0:01:33]} 14. Qe2 {[%clk 0:02:09]}  a5 {[%clk 0:01:29]} 15. O-O {[%clk 0:01:56]}  Ne7 {[%clk 0:01:12]} 16. h4 {[%clk 0:01:42]}  Qe8 {[%clk 0:01:10]} 17. Kg2 {[%clk 0:01:37]}  Bd7 {[%clk 0:00:32]} 18. Rae1 {[%clk 0:01:08]}  a4 {[%clk 0:00:32]} 19. a3 {[%clk 0:01:09]}  Rb8 {[%clk 0:00:30]} 20. Nxd7 {[%clk 0:01:07]}  Qxd7 {[%clk 0:00:30]} 21. Bb5 {[%clk 0:01:07]}  Nc6 {[%clk 0:00:31]} 22. Bxd6 {[%clk 0:00:44]}  Qxd6 {[%clk 0:00:32]} 23. Bxa4 {[%clk 0:00:44]}  f4 {[%clk 0:00:32]} 24. g4 {[%clk 0:00:05]}  h5 {[%clk 0:00:32]} 25. g5 {[%clk 0:00:03]}  Ne7 {[%clk 0:00:31]} 26. Bc2 {[%clk 0:00:03]}  Nf5 {[%clk 0:00:20]} 27. Bxe4 {[%clk 0:00:04]}  dxe4 {[%clk 0:00:20]} 28. Qxe4 {[%clk 0:00:05]}  Rfe8 {[%clk 0:00:20]} 29. Kh3 {[%clk 0:00:02]}  b5 {[%clk 0:00:20]} 30. Ne5 {[%clk 0:00:02]}  Rbc8 {[%clk 0:00:15]} 31. Qf3 {[%clk 0:00:02]}  Rf8 {[%clk 0:00:14]} 32. Ng6 {[%clk 0:00:01]}  Rf7 {[%clk 0:00:14]} 33. Qxh5 {[%clk 0:00:02]}  Nh6 {[%clk 0:00:07]} 34. gxh6 {[%clk 0:00:02]}  gxh6 {[%clk 0:00:07]} 35. Rg1 {[%clk 0:00:02]}  Kh7 {[%clk 0:00:07]} 36. Ne5 {[%clk 0:00:01]}  Rf6 {[%clk 0:00:06]} 37. Rg6 {[%clk 0:00:02]}  Rcf8 {[%clk 0:00:05]} 38. Qxh6# {[%clk 0:00:03]} 1-0

[Event "January 9 Late 2024"]
[Site "https://www.chess.com"]
[Date "2024.01.09"]
[Round "1"]
[White "Mohammed, Zozek Salah Mohammed"]
[Black "Korchmar, Vasiliy"]
[Result "0-1"]
[Board "129"]
[TimeControl "180+1"]
[WhiteFideId "4803361"]
[BlackFideId "24131750"]
[WhiteElo "2396"]
[BlackElo "2723"]
[WhiteTeam "IRQ"]
[BlackTeam "RUS"]
[WhiteClock "0:00:18"]
[BlackClock "0:00:33"]

1. d4 {[%clk 0:03:00]}  d5 {[%clk 0:02:59]} 2. Nf3 {[%clk 0:02:58]}  Nf6 {[%clk 0:02:59]} 3. g3 {[%clk 0:02:58]}  Bg4 {[%clk 0:02:58]} 4. Bg2 {[%clk 0:02:57]}  Nbd7 {[%clk 0:02:58]} 5. O-O {[%clk 0:02:58]}  e6 {[%clk 0:02:58]} 6. c4 {[%clk 0:02:58]}  c6 {[%clk 0:02:58]} 7. cxd5 {[%clk 0:02:53]}  exd5 {[%clk 0:02:58]} 8. Nc3 {[%clk 0:02:53]}  Bd6 {[%clk 0:02:54]} 9. h3 {[%clk 0:02:46]}  Bf5 {[%clk 0:02:44]} 10. Bg5 {[%clk 0:02:35]}  h6 {[%clk 0:02:43]} 11. Bxf6 {[%clk 0:02:35]}  Nxf6 {[%clk 0:02:36]} 12. Ne5 {[%clk 0:02:31]}  O-O {[%clk 0:02:35]} 13. Qb3 {[%clk 0:02:22]}  Rb8 {[%clk 0:02:30]} 14. Rfe1 {[%clk 0:02:06]}  Re8 {[%clk 0:02:29]} 15. e4 {[%clk 0:02:05]}  Be6 {[%clk 0:02:20]} 16. exd5 {[%clk 0:02:02]}  cxd5 {[%clk 0:02:20]} 17. f4 {[%clk 0:01:50]}  Ne4 {[%clk 0:02:15]} 18. Nxe4 {[%clk 0:01:50]}  dxe4 {[%clk 0:02:15]} 19. Qe3 {[%clk 0:01:48]}  f6 {[%clk 0:02:04]} 20. Ng4 {[%clk 0:01:33]}  Bc7 {[%clk 0:02:01]} 21. Kh2 {[%clk 0:01:27]}  Bb6 {[%clk 0:01:59]} 22. Rad1 {[%clk 0:01:27]}  Qd7 {[%clk 0:01:51]} 23. Nf2 {[%clk 0:01:24]}  f5 {[%clk 0:01:51]} 24. Qe2 {[%clk 0:01:10]}  Bxa2 {[%clk 0:01:39]} 25. d5 {[%clk 0:00:51]}  Bxd5 {[%clk 0:01:38]} 26. Nxe4 {[%clk 0:00:48]}  fxe4 {[%clk 0:01:24]} 27. Bxe4 {[%clk 0:00:48]}  Rxe4 {[%clk 0:01:24]} 28. Qxe4 {[%clk 0:00:42]}  Bxe4 {[%clk 0:01:25]} 29. Rxd7 {[%clk 0:00:42]}  Bc6 {[%clk 0:01:24]} 30. Rde7 {[%clk 0:00:40]}  Rd8 {[%clk 0:01:24]} 31. R1e2 {[%clk 0:00:34]}  Bd4 {[%clk 0:01:21]} 32. g4 {[%clk 0:00:31]}  Bf6 {[%clk 0:01:16]} 33. R7e3 {[%clk 0:00:29]}  a5 {[%clk 0:01:13]} 34. Kg3 {[%clk 0:00:29]}  Bd4 {[%clk 0:00:59]} 35. Re7 {[%clk 0:00:27]}  Bc5 {[%clk 0:00:55]} 36. R7e6 {[%clk 0:00:20]}  Rd3+ {[%clk 0:00:55]} 37. Kh4 {[%clk 0:00:20]}  Bd4 {[%clk 0:00:44]} 38. g5 {[%clk 0:00:19]}  hxg5+ {[%clk 0:00:42]} 39. Kxg5 {[%clk 0:00:19]}  Rg3+ {[%clk 0:00:37]} 40. Kh4 {[%clk 0:00:19]}  Rg1 {[%clk 0:00:34]} 41. f5 {[%clk 0:00:18]}  Bf6+ {[%clk 0:00:33]} 42. Kh5 {[%clk 0:00:18]}  Bf3# {[%clk 0:00:33]} 0-1

[Event "January 9 Late 2024"]
[Site "https://www.chess.com"]
[Date "2024.01.09"]
[Round "1"]
[White "Avalos Parra, Joao"]
[Black "Arabidze, Meri"]
[Result "0-1"]
[Board "131"]
[TimeControl "180+1"]
[WhiteFideId "3402541"]
[BlackFideId "13604040"]
[WhiteElo "2394"]
[BlackElo "2717"]
[WhiteTeam "CHI"]
[BlackTeam "GEO"]
[WhiteClock "0:00:04"]
[BlackClock "0:00:07"]

1. d4 {[%clk 0:03:00]}  Nf6 {[%clk 0:02:59]} 2. Nf3 {[%clk 0:02:58]}  b6 {[%clk 0:02:59]} 3. c4 {[%clk 0:02:59]}  Bb7 {[%clk 0:02:58]} 4. Nc3 {[%clk 0:02:59]}  g6 {[%clk 0:02:59]} 5. Bg5 {[%clk 0:02:56]}  Bg7 {[%clk 0:02:59]} 6. e3 {[%clk 0:02:57]}  d6 {[%clk 0:02:56]} 7. Be2 {[%clk 0:02:57]}  O-O {[%clk 0:02:55]} 8. Qc2 {[%clk 0:02:57]}  Nbd7 {[%clk 0:02:55]} 9. Rd1 {[%clk 0:02:55]}  a6 {[%clk 0:02:52]} 10. h3 {[%clk 0:02:54]}  Qe8 {[%clk 0:02:23]} 11. O-O {[%clk 0:02:45]}  e5 {[%clk 0:02:23]} 12. dxe5 {[%clk 0:02:42]}  Nxe5 {[%clk 0:02:20]} 13. Nxe5 {[%clk 0:02:37]}  Qxe5 {[%clk 0:02:21]} 14. Bf4 {[%clk 0:02:34]}  Qe7 {[%clk 0:02:20]} 15. Nd5 {[%clk 0:02:28]}  Nxd5 {[%clk 0:02:19]} 16. cxd5 {[%clk 0:02:29]}  f5 {[%clk 0:02:15]} 17. Bf3 {[%clk 0:02:14]}  Kh8 {[%clk 0:02:13]} 18. Rc1 {[%clk 0:02:13]}  Rf7 {[%clk 0:02:10]} 19. Rfe1 {[%clk 0:02:06]}  a5 {[%clk 0:01:59]} 20. b3 {[%clk 0:02:00]}  Qf6 {[%clk 0:01:53]} 21. Bg3 {[%clk 0:01:20]}  Raf8 {[%clk 0:01:52]} 22. h4 {[%clk 0:01:19]}  Bc8 {[%clk 0:01:50]} 23. Qd2 {[%clk 0:01:16]}  h6 {[%clk 0:01:48]} 24. Rc4 {[%clk 0:01:13]}  g5 {[%clk 0:01:45]} 25. hxg5 {[%clk 0:01:13]}  hxg5 {[%clk 0:01:45]} 26. Rec1 {[%clk 0:01:11]}  Qd8 {[%clk 0:01:07]} 27. Bh5 {[%clk 0:01:11]}  Re7 {[%clk 0:01:04]} 28. Qc2 {[%clk 0:01:02]}  f4 {[%clk 0:01:02]} 29. exf4 {[%clk 0:00:58]}  Bf5 {[%clk 0:01:01]} 30. Qd2 {[%clk 0:00:56]}  b5 {[%clk 0:00:35]} 31. Rc6 {[%clk 0:00:50]}  gxf4 {[%clk 0:00:30]} 32. Bxf4 {[%clk 0:00:51]}  Bf6 {[%clk 0:00:22]} 33. Qxa5 {[%clk 0:00:43]}  Rh7 {[%clk 0:00:22]} 34. Bf3 {[%clk 0:00:39]}  Bd4 {[%clk 0:00:21]} 35. Rxc7 {[%clk 0:00:23]}  Qh4 {[%clk 0:00:12]} 36. Rxh7+ {[%clk 0:00:23]}  Bxh7 {[%clk 0:00:12]} 37. Bxd6 {[%clk 0:00:10]}  Bxf2+ {[%clk 0:00:06]} 38. Kf1 {[%clk 0:00:04]}  Bd3+ {[%clk 0:00:07]} 39. Be2 {[%clk 0:00:04]}  Qh1# {[%clk 0:00:07]} 0-1

[Event "January 9 Late 2024"]
[Site "https://www.chess.com"]
[Date "2024.01.09"]
[Round "1"]
[White "Jarocka, Liwia"]
[Black "Banzea, Alexandru-Bogdan"]
[Result "1-0"]
[Board "133"]
[TimeControl "180+1"]
[WhiteFideId "21807558"]
[BlackFideId "1232622"]
[WhiteElo "2390"]
[BlackElo "2712"]
[WhiteTeam "POL"]
[BlackTeam "ROU"]
[WhiteClock "0:00:49"]
[BlackClock "0:00:24"]

1. e4 {[%clk 0:03:00]}  c6 {[%clk 0:02:56]} 2. Nc3 {[%clk 0:02:58]}  d5 {[%clk 0:02:57]} 3. Nf3 {[%clk 0:02:58]}  dxe4 {[%clk 0:02:57]} 4. Nxe4 {[%clk 0:02:58]}  Nf6 {[%clk 0:02:58]} 5. Qe2 {[%clk 0:02:57]}  Nxe4 {[%clk 0:02:56]} 6. Qxe4 {[%clk 0:02:58]}  Be6 {[%clk 0:02:56]} 7. d4 {[%clk 0:02:51]}  Bd5 {[%clk 0:02:46]} 8. Qg4 {[%clk 0:02:50]}  Bxf3 {[%clk 0:02:45]} 9. gxf3 {[%clk 0:02:46]}  e6 {[%clk 0:02:44]} 10. c3 {[%clk 0:02:46]}  Nd7 {[%clk 0:02:37]} 11. Bd3 {[%clk 0:02:46]}  Nf6 {[%clk 0:02:38]} 12. Qh4 {[%clk 0:02:44]}  g6 {[%clk 0:02:39]} 13. Bg5 {[%clk 0:02:37]}  Be7 {[%clk 0:02:39]} 14. O-O-O {[%clk 0:02:36]}  Nd5 {[%clk 0:02:38]} 15. Bxe7 {[%clk 0:02:29]}  Qxe7 {[%clk 0:02:39]} 16. Qg3 {[%clk 0:02:25]}  O-O-O {[%clk 0:02:29]} 17. Rhe1 {[%clk 0:02:25]}  Qf6 {[%clk 0:02:28]} 18. Kb1 {[%clk 0:02:23]}  h5 {[%clk 0:02:28]} 19. Be4 {[%clk 0:02:15]}  Nf4 {[%clk 0:02:10]} 20. h4 {[%clk 0:02:11]}  Rd7 {[%clk 0:02:09]} 21. Bc2 {[%clk 0:02:08]}  Rhd8 {[%clk 0:02:09]} 22. Re4 {[%clk 0:02:08]}  Nd5 {[%clk 0:02:10]} 23. Rde1 {[%clk 0:02:06]}  Ne7 {[%clk 0:02:10]} 24. Re5 {[%clk 0:01:57]}  Nf5 {[%clk 0:02:10]} 25. Bxf5 {[%clk 0:01:54]}  exf5 {[%clk 0:02:11]} 26. f4 {[%clk 0:01:51]}  b6 {[%clk 0:02:01]} 27. Qg5 {[%clk 0:01:45]}  Qxg5 {[%clk 0:01:58]} 28. fxg5 {[%clk 0:01:42]}  Kc7 {[%clk 0:01:58]} 29. f4 {[%clk 0:01:42]}  Rd5 {[%clk 0:01:48]} 30. Rxd5 {[%clk 0:01:39]}  cxd5 {[%clk 0:01:37]} 31. Kc2 {[%clk 0:01:37]}  Kd6 {[%clk 0:01:35]} 32. Kd3 {[%clk 0:01:37]}  Rc8 {[%clk 0:01:36]} 33. a4 {[%clk 0:01:33]}  a5 {[%clk 0:01:33]} 34. b3 {[%clk 0:01:31]}  Rb8 {[%clk 0:01:28]} 35. c4 {[%clk 0:01:24]}  Rd8 {[%clk 0:01:28]} 36. Re5 {[%clk 0:01:23]}  dxc4+ {[%clk 0:01:23]} 37. bxc4 {[%clk 0:01:23]}  Rc8 {[%clk 0:01:17]} 38. Rb5 {[%clk 0:01:20]}  Re8 {[%clk 0:01:06]} 39. Rxb6+ {[%clk 0:01:18]}  Kc7 {[%clk 0:01:07]} 40. Rb5 {[%clk 0:01:17]}  Re4 {[%clk 0:01:08]} 41. Rxa5 {[%clk 0:01:07]}  Rxf4 {[%clk 0:01:09]} 42. Ra7+ {[%clk 0:01:08]}  Kd6 {[%clk 0:01:04]} 43. Rxf7 {[%clk 0:01:08]}  Rxh4 {[%clk 0:00:54]} 44. Rf6+ {[%clk 0:01:08]}  Ke7 {[%clk 0:00:55]} 45. Rxg6 {[%clk 0:01:06]}  Rh3+ {[%clk 0:00:56]} 46. Kd2 {[%clk 0:01:05]}  Ra3 {[%clk 0:00:56]} 47. Rg7+ {[%clk 0:00:58]}  Ke6 {[%clk 0:00:54]} 48. d5+ {[%clk 0:00:57]}  Ke5 {[%clk 0:00:53]} 49. Re7+ {[%clk 0:00:55]}  Kd4 {[%clk 0:00:38]} 50. d6 {[%clk 0:00:55]}  Kxc4 {[%clk 0:00:29]} 51. Rc7+ {[%clk 0:00:51]}  Kd4 {[%clk 0:00:26]} 52. d7 {[%clk 0:00:52]}  Rd3+ {[%clk 0:00:24]} 53. Ke2 {[%clk 0:00:49]} 1-0